fUST/lending_fUST_20250819
["ID","MTS","AMOUNT","RATE_DAILY","PERIOD"]
[380104337,1755545442626,-480.0,0.00019452,2]
[380104339,1755545442635,-480.0,0.00019452,2]
[380104341,1755545442644,-480.0,0.00019452,2]
[380104343,1755545442654,-480.0,0.00019452,2]
[380104345,1755545442663,-572.42,0.00019452,2]
[380104347,1755545442672,-480.0,0.00019452,2]
[380104348,1755545442682,-460.0,0.00019452,2]
[380104350,1755545442692,-186.70200534,0.00019452,2]
[380104352,1755545442702,-480.0,0.00019452,2]
[380104354,1755545442711,-480.0,0.00019452,2]
[380104356,1755545442720,-480.0,0.00019452,2]
[380104358,1755545442731,-480.0,0.00019452,2]
[380104360,1755545442740,-480.0,0.00019452,2]
[380104362,1755545442750,-480.0,0.00019452,2]
[380104364,1755545442760,-480.0,0.00019452,2]
[380104366,1755545442770,-480.0,0.00019452,2]
[380104368,1755545442780,-480.0,0.00019452,2]
[380104370,1755545442790,-480.0,0.00019452,2]
[380104372,1755545442800,-480.0,0.00019452,2]
[380104374,1755545442809,-480.0,0.00019452,2]
[380104376,1755545442819,-480.0,0.00019452,2]
[380104379,1755545442828,-537.7,0.00019452,2]
[380104382,1755545442837,-480.0,0.00019452,2]
[380104385,1755545442847,-480.0,0.00019452,2]
[380104387,1755545442865,-480.0,0.00019452,2]
[380104389,1755545442875,-480.0,0.00019452,2]
[380104391,1755545442884,-480.0,0.00019452,2]
[380104393,1755545442893,-480.0,0.00019452,2]
[380104395,1755545442902,-616.43,0.00019452,2]
[380104397,1755545442911,-728.99,0.00019452,2]
[380104400,1755545442920,-480.0,0.00019452,2]
[380104402,1755545442929,-546.55,0.00019452,2]
[380104404,1755545442938,-480.0,0.00019452,2]
[380104406,1755545442953,-561.56,0.00019452,2]
[380104408,1755545442969,-480.0,0.00019452,2]
[380104410,1755545442979,-480.0,0.00019452,2]
[380104412,1755545442988,-500.0,0.00019452,2]
[380104415,1755545443006,-200.0,0.00019561,20]
[380104416,1755545443016,-200.0,0.00019561,20]
[380104418,1755545443026,-200.0,0.00019561,20]
[380104420,1755545443035,-200.0,0.00019561,20]
[380104422,1755545443044,-200.0,0.00019561,20]
[380104424,1755545443054,-200.0,0.00019561,20]
[380104426,1755545443063,-200.0,0.00019561,20]
[380104428,1755545443073,-200.0,0.00019561,20]
[380104430,1755545443082,-200.0,0.00019561,20]
[380104432,1755545443091,-200.0,0.00019561,20]
[380104434,1755545443102,-682.19529592,0.00019626,2]
[380104436,1755545443111,-356.53372328,0.00019652,2]
[380104438,1755545443120,-266.52465715,0.00019725,2]
[380104440,1755545443133,-480.0,0.00019725,2]
[380104442,1755545443142,-480.0,0.00019725,2]
[380104444,1755545443151,-386.62,0.00019726,2]
[380104446,1755545443161,-480.0,0.00019726,2]
[380104448,1755545443170,-480.0,0.00019726,2]
[380104451,1755545443180,-626.59,0.00019726,2]
[380104453,1755545443190,-480.0,0.00019726,2]
[380104454,1755545443200,-480.0,0.00019726,2]
[380104456,1755545443211,-480.0,0.00019726,2]
[380104458,1755545443219,-480.0,0.00019726,2]
[380104460,1755545443229,-481.98,0.00019726,2]
[380104462,1755545443238,-388.73,0.00019726,2]
[380104464,1755545443247,-480.0,0.00019726,2]
[380104466,1755545443257,-480.0,0.00019726,2]
[380104468,1755545443267,-697.28,0.00019726,2]
[380104470,1755545443276,-480.0,0.00019726,2]
[380104472,1755545443285,-480.0,0.00019726,2]
[380104474,1755545443294,-746.11,0.00019726,2]
[380104476,1755545443303,-370.03,0.00019726,2]
[380104478,1755545443313,-572.24,0.00019726,2]
[380104480,1755545443322,-626.67,0.00019726,2]
[380104482,1755545443332,-471.1278582,0.00019726,2]
[380104484,1755545443342,-480.0,0.00019726,2]
[380104486,1755545443351,-873.41,0.00019726,2]
[380104488,1755545443360,-480.0,0.00019726,2]
[380104490,1755545443370,-460.0,0.00019726,2]
[380104492,1755545443379,-480.0,0.00019726,2]
[380104494,1755545443388,-480.0,0.00019726,2]
[380104496,1755545443398,-480.0,0.00019726,2]
[380104498,1755545443407,-849.76,0.00019726,2]
[380104500,1755545443417,-296.05,0.00019726,2]
[380104502,1755545443427,-480.0,0.00019726,2]
[380104504,1755545443436,-480.0,0.00019726,2]
[380104506,1755545443445,-583.67,0.00019726,2]
[380104508,1755545443454,-161.95748748,0.00019726,2]
[380104510,1755545443464,-480.0,0.00019726,2]
[380104512,1755545443473,-1188.19,0.00019726,2]
[380104514,1755545443483,-480.0,0.00019726,2]
[380104516,1755545443492,-480.0,0.00019726,2]
[380104518,1755545443501,-480.0,0.00019726,2]
[380104520,1755545443511,-480.0,0.00019726,2]
[380104522,1755545443520,-460.0,0.00019726,2]
[380104524,1755545443530,-3096.08,0.00019726,2]
[380104526,1755545443539,-480.0,0.00019726,2]
[380104528,1755545443548,-480.0,0.00019726,2]
[380104530,1755545443557,-480.0,0.00019726,2]
[380104532,1755545443567,-480.0,0.00019726,2]
[380104534,1755545443576,-480.0,0.00019726,2]
[380104535,1755545443585,-460.0,0.00019726,2]
[380104536,1755545443594,-480.0,0.00019726,2]
[380104537,1755545443603,-480.0,0.00019726,2]
[380104538,1755545443612,-480.0,0.00019726,2]
[380104539,1755545443621,-480.0,0.00019726,2]
[380104540,1755545443630,-480.0,0.00019726,2]
[380104541,1755545443639,-480.0,0.00019726,2]
[380104542,1755545443648,-480.0,0.00019726,2]
[380104543,1755545443657,-480.0,0.00019726,2]
[380104544,1755545443667,-480.0,0.00019726,2]
[380104545,1755545443676,-480.0,0.00019726,2]
[380104546,1755545443686,-480.0,0.00019726,2]
[380104547,1755545443695,-480.0,0.00019726,2]
[380104548,1755545443705,-480.0,0.00019726,2]
[380104549,1755545443714,-480.0,0.00019726,2]
[380104550,1755545443723,-480.0,0.00019726,2]
[380104551,1755545443732,-480.0,0.00019726,2]
[380104552,1755545443743,-480.0,0.00019726,2]
[380104553,1755545443752,-480.0,0.00019726,2]
[380104554,1755545443761,-480.0,0.00019726,2]
[380104555,1755545443771,-480.0,0.00019726,2]
[380104556,1755545443781,-480.0,0.00019726,2]
[380104557,1755545443790,-480.0,0.00019726,2]
[380104558,1755545443799,-480.0,0.00019726,2]
[380104559,1755545443808,-480.0,0.00019726,2]
[380104560,1755545443818,-537.7,0.00019726,2]
[380104561,1755545443828,-480.0,0.00019726,2]
[380104562,1755545443837,-480.0,0.00019726,2]
[380104563,1755545443846,-480.0,0.00019726,2]
[380104564,1755545443855,-480.0,0.00019726,2]
[380104565,1755545443864,-480.0,0.00019726,2]
[380104567,1755545443873,-728.99,0.00019726,2]
[380104569,1755545443885,-480.0,0.00019726,2]
[380104570,1755545443894,-561.56,0.00019726,2]
[380104572,1755545443904,-480.0,0.00019726,2]
[380104573,1755545443915,-480.0,0.00019726,2]
[380104574,1755545443930,-500.0,0.00019726,2]
[380104575,1755545443939,-348.93557884,0.00019763,2]
[380104576,1755545443949,-162.713526,0.00019863,2]
[380104577,1755545443958,-208.04,0.00019892,2]
[380104578,1755545443967,-600.0,0.00019951,20]
[380104579,1755545443977,-500.0,0.00019973,2]
[380104580,1755545443986,-500.0,0.00019973,2]
[380104581,1755545444002,-428.98590075,0.00019973,2]
[380104582,1755545444011,-258.76342241,0.00019973,2]
[380104583,1755545444021,-100000.0,0.0001999,2]
[380104585,1755545444030,-480.0,0.00019999,2]
[380104586,1755545444039,-480.0,0.00019999,2]
[380104587,1755545444050,-480.0,0.0002,2]
[380104589,1755545444059,-480.0,0.0002,2]
[380104590,1755545444069,-305.07,0.0002,2]
[380104591,1755545444078,-480.0,0.0002,2]
[380104592,1755545444087,-480.0,0.0002,2]
[380104593,1755545444096,-480.0,0.0002,2]
[380104594,1755545444105,-500.0,0.0002,2]
[380104595,1755545444115,-480.0,0.0002,2]
[380104596,1755545444125,-499.26651427,0.0002,2]
[380104597,1755545444139,-697.28,0.0002,2]
[380104598,1755545444148,-480.0,0.0002,2]
[380104599,1755545444158,-480.0,0.0002,2]
[380104600,1755545444167,-746.11,0.0002,2]
[380104601,1755545444177,-480.0,0.0002,2]
[380104602,1755545444186,-873.41,0.0002,2]
[380104603,1755545444195,-460.0,0.0002,2]
[380104604,1755545444205,-480.0,0.0002,2]
[380104605,1755545444214,-480.0,0.0002,2]
[380104606,1755545444224,-480.0,0.0002,2]
[380104607,1755545444234,-849.76,0.0002,2]
[380104608,1755545444243,-480.0,0.0002,2]
[380104609,1755545444253,-480.0,0.0002,2]
[380104610,1755545444262,-583.67,0.0002,2]
[380104611,1755545444272,-480.0,0.0002,2]
[380104612,1755545444282,-1188.19,0.0002,2]
[380104613,1755545444292,-480.0,0.0002,2]
[380104614,1755545444302,-480.0,0.0002,2]
[380104615,1755545444312,-480.0,0.0002,2]
[380104616,1755545444322,-3096.08,0.0002,2]
[380104617,1755545444333,-480.0,0.0002,2]
[380104618,1755545444343,-480.0,0.0002,2]
[380104619,1755545444352,-480.0,0.0002,2]
[380104620,1755545444363,-480.0,0.0002,2]
[380104621,1755545444372,-480.0,0.0002,2]
[380104622,1755545444391,-480.0,0.0002,2]
[380104623,1755545444401,-480.0,0.0002,2]
[380104624,1755545444411,-480.0,0.0002,2]
[380104625,1755545444420,-480.0,0.0002,2]
[380104626,1755545444430,-382.1,0.0002,2]
[380104627,1755545444446,-480.0,0.0002,2]
[380104628,1755545444455,-404.78,0.0002,2]
[380104629,1755545444465,-466.11,0.0002,2]
[380104630,1755545444474,-480.0,0.0002,2]
[380104631,1755545444483,-480.0,0.0002,2]
[380104632,1755545444493,-480.0,0.0002,2]
[380104633,1755545444502,-480.0,0.0002,2]
[380104634,1755545444512,-480.0,0.0002,2]
[380104635,1755545444521,-480.0,0.0002,2]
[380104636,1755545444530,-480.0,0.0002,2]
[380104637,1755545444540,-480.0,0.0002,2]
[380104638,1755545444549,-480.0,0.0002,2]
[380104639,1755545444558,-480.0,0.0002,2]
[380104640,1755545444568,-480.0,0.0002,2]
[380104641,1755545444577,-480.0,0.0002,2]
[380104642,1755545444587,-195.81055902,0.0002,2]
[380104643,1755545444596,-480.0,0.0002,2]
[380104644,1755545444606,-537.7,0.0002,2]
[380104645,1755545444615,-207.48,0.0002,2]
[380104646,1755545444625,-480.0,0.0002,2]
[380104647,1755545444635,-480.0,0.0002,2]
[380104648,1755545444644,-480.0,0.0002,2]
[380104649,1755545444653,-536.98,0.0002,2]
[380104650,1755545444662,-728.99,0.0002,2]
[380104651,1755545444672,-480.0,0.0002,2]
[380104652,1755545444682,-561.56,0.0002,2]
[380104653,1755545444692,-480.0,0.0002,2]
[380104654,1755545444701,-480.0,0.0002,2]
[380104655,1755545444710,-500.0,0.00020082,2]
[380104656,1755545444719,-348.93557884,0.00020105,2]
[380104657,1755545444728,-507.48997828,0.00020203,2]
[380104658,1755545444738,-5000.0,0.00020261,2]
[380104659,1755545444844,-480.0,0.00020273,2]
[380104660,1755545444854,-480.0,0.00020273,2]
[380104661,1755545444863,-480.0,0.00020273,2]
[380104662,1755545444872,-480.0,0.00020273,2]
[380104664,1755545444881,-480.0,0.00020273,2]
[380104665,1755545444890,-480.0,0.00020273,2]
[380104666,1755545444900,-697.28,0.00020273,2]
[380104667,1755545444909,-480.0,0.00020273,2]
[380104668,1755545444919,-480.0,0.00020273,2]
[380104669,1755545444928,-746.11,0.00020273,2]
[380104670,1755545444938,-873.41,0.00020273,2]
[380104671,1755545444947,-480.0,0.00020273,2]
[380104672,1755545444957,-480.0,0.00020273,2]
[380104673,1755545444966,-480.0,0.00020273,2]
[380104674,1755545444976,-849.76,0.00020273,2]
[380104675,1755545444986,-480.0,0.00020273,2]
[380104676,1755545445000,-480.0,0.00020273,2]
[380104677,1755545445011,-583.67,0.00020273,2]
[380104678,1755545445021,-480.0,0.00020273,2]
[380104679,1755545445030,-1188.19,0.00020273,2]
[380104680,1755545445039,-480.0,0.00020273,2]
[380104681,1755545445049,-480.0,0.00020273,2]
[380104682,1755545445059,-480.0,0.00020273,2]
[380104683,1755545445068,-3096.08,0.00020273,2]
[380104684,1755545445078,-480.0,0.00020273,2]
[380104685,1755545445087,-480.0,0.00020273,2]
[380104686,1755545445096,-480.0,0.00020273,2]
[380104687,1755545445106,-480.0,0.00020273,2]
[380104688,1755545445115,-558.48,0.00020273,2]
[380104689,1755545445126,-188.09234493,0.00020273,2]
[380104690,1755545445138,-480.0,0.00020273,2]
[380104691,1755545445147,-480.0,0.00020273,2]
[380104692,1755545445157,-604.87,0.00020273,2]
[380104693,1755545445166,-480.0,0.00020273,2]
[380104694,1755545445177,-480.0,0.00020273,2]
[380104695,1755545445187,-480.0,0.00020273,2]
[380104696,1755545445195,-480.0,0.00020273,2]
[380104697,1755545445205,-480.0,0.00020273,2]
[380104698,1755545445214,-385.46198753,0.00020273,2]
[380104699,1755545445225,-480.0,0.00020273,2]
[380104700,1755545445234,-480.0,0.00020273,2]
[380104701,1755545445244,-480.0,0.00020273,2]
[380104702,1755545445254,-480.0,0.00020273,2]
[380104703,1755545445263,-480.0,0.00020273,2]
[380104704,1755545445272,-480.0,0.00020273,2]
[380104705,1755545445281,-480.0,0.00020273,2]
[380104706,1755545445290,-480.0,0.00020273,2]
[380104707,1755545445300,-480.0,0.00020273,2]
[380104708,1755545445309,-537.7,0.00020273,2]
[380104709,1755545445318,-480.0,0.00020273,2]
[380104710,1755545445327,-480.0,0.00020273,2]
[380104711,1755545445336,-480.0,0.00020273,2]
[380104712,1755545445345,-480.0,0.00020273,2]
[380104713,1755545445355,-728.99,0.00020273,2]
[380104714,1755545445364,-480.0,0.00020273,2]
[380104715,1755545445373,-561.56,0.00020273,2]
[380104716,1755545445382,-480.0,0.00020273,2]
[380104717,1755545445391,-480.0,0.00020273,2]
[380104718,1755545445400,-500.0,0.00020274,2]
[380104719,1755545445410,-348.93557884,0.00020447,2]
[380104720,1755545445419,-160.0,0.00020469,2]
[380104721,1755545445428,-500.0,0.00020521,2]
[380104722,1755545445437,-480.0,0.00020547,2]
[380104723,1755545445447,-480.0,0.00020547,2]
[380104724,1755545445456,-218.88603326,0.00020547,2]
[380104725,1755545445465,-384.01,0.00020547,2]
[380104726,1755545445474,-480.0,0.00020547,2]
[380104727,1755545445483,-524.59,0.00020547,2]
[380104728,1755545445492,-398.92828017,0.00020547,2]
[380104729,1755545445501,-697.28,0.00020547,2]
[380104730,1755545445510,-480.0,0.00020547,2]
[380104731,1755545445520,-746.11,0.00020547,2]
[380104732,1755545445529,-873.41,0.00020547,2]
[380104733,1755545445538,-480.0,0.00020547,2]
[380104734,1755545445547,-480.0,0.00020547,2]
[380104735,1755545445556,-480.0,0.00020547,2]
[380104736,1755545445565,-849.76,0.00020547,2]
[380104737,1755545445575,-301.16,0.00020547,2]
[380104738,1755545445584,-480.0,0.00020547,2]
[380104739,1755545445594,-583.67,0.00020547,2]
[380104740,1755545445603,-480.0,0.00020547,2]
[380104741,1755545445613,-1188.19,0.00020547,2]
[380104742,1755545445622,-480.0,0.00020547,2]
[380104743,1755545445631,-480.0,0.00020547,2]
[380104744,1755545445640,-480.0,0.00020547,2]
[380104745,1755545445649,-3096.08,0.00020547,2]
[380104746,1755545445658,-480.0,0.00020547,2]
[380104747,1755545445667,-480.0,0.00020547,2]
[380104748,1755545445677,-480.0,0.00020547,2]
[380104749,1755545445686,-480.0,0.00020547,2]
[380104750,1755545445695,-480.0,0.00020547,2]
[380104751,1755545445704,-480.0,0.00020547,2]
[380104752,1755545445714,-480.0,0.00020547,2]
[380104753,1755545445722,-480.0,0.00020547,2]
[380104754,1755545445731,-480.0,0.00020547,2]
[380104755,1755545445742,-480.0,0.00020547,2]
[380104756,1755545445751,-480.0,0.00020547,2]
[380104757,1755545445760,-480.0,0.00020547,2]
[380104758,1755545445769,-480.0,0.00020547,2]
[380104759,1755545445779,-480.0,0.00020547,2]
[380104760,1755545445788,-480.0,0.00020547,2]
[380104761,1755545445797,-480.0,0.00020547,2]
[380104762,1755545445806,-480.0,0.00020547,2]
[380104763,1755545445817,-480.0,0.00020547,2]
[380104764,1755545445826,-480.0,0.00020547,2]
[380104765,1755545445835,-480.0,0.00020547,2]
[380104766,1755545445844,-537.7,0.00020547,2]
[380104767,1755545445853,-480.0,0.00020547,2]
[380104768,1755545445862,-480.0,0.00020547,2]
[380104769,1755545445872,-480.0,0.00020547,2]
[380104770,1755545445880,-480.0,0.00020547,2]
[380104771,1755545445890,-728.99,0.00020547,2]
[380104772,1755545445899,-480.0,0.00020547,2]
[380104773,1755545445909,-561.56,0.00020547,2]
[380104774,1755545445918,-480.0,0.00020547,2]
[380104775,1755545445927,-480.0,0.00020547,2]
[380104776,1755545445937,-158.250962,0.00020548,2]
[380104777,1755545445946,-500.0,0.00020548,2]
[380104778,1755545445955,-160.0,0.00020659,2]
[380104779,1755545445965,-528.58062739,0.00020659,2]
[380104780,1755545445974,-215.75323784,0.00020659,2]
[380104781,1755545445984,-843.81736472,0.00020659,2]
[380104782,1755545445993,-375.82681177,0.00020659,2]
[380104783,1755545446002,-160.0,0.00020659,2]
[380104784,1755545446011,-232.18122251,0.00020659,2]
[380104785,1755545446021,-160.0,0.00020659,2]
[380104786,1755545446029,-216.85420361,0.00020659,2]
[380104787,1755545446038,-417.15472785,0.00020659,2]
[380104788,1755545446047,-160.0,0.00020659,2]
[380104789,1755545446056,-160.0,0.00020659,2]
[380104790,1755545446065,-480.0,0.00020821,2]
[380104791,1755545446074,-480.0,0.00020821,2]
[380104792,1755545446083,-697.28,0.00020821,2]
[380104793,1755545446092,-277.13270652,0.00020821,2]
[380104794,1755545446101,-746.11,0.00020821,2]
[380104795,1755545446110,-873.41,0.00020821,2]
[380104796,1755545446119,-201.63,0.00020821,2]
[380104797,1755545446129,-480.0,0.00020821,2]
[380104798,1755545446140,-480.0,0.00020821,2]
[380104799,1755545446150,-849.76,0.00020821,2]
[380104800,1755545446159,-480.0,0.00020821,2]
[380104801,1755545446169,-583.67,0.00020821,2]
[380104802,1755545446179,-480.0,0.00020821,2]
[380104803,1755545446188,-1188.19,0.00020821,2]
[380104804,1755545446197,-173.57,0.00020821,2]
[380104805,1755545446206,-550.97000576,0.00020821,2]
[380104806,1755545446218,-480.0,0.00020821,2]
[380104807,1755545446228,-3096.08,0.00020821,2]
[380104808,1755545446237,-480.0,0.00020821,2]
[380104809,1755545446246,-480.0,0.00020821,2]
[380104810,1755545446255,-480.0,0.00020821,2]
[380104811,1755545446264,-480.0,0.00020821,2]
[380104812,1755545446273,-480.0,0.00020821,2]
[380104813,1755545446282,-480.0,0.00020821,2]
[380104814,1755545446291,-480.0,0.00020821,2]
[380104815,1755545446299,-480.0,0.00020821,2]
[380104816,1755545446308,-480.0,0.00020821,2]
[380104817,1755545446318,-480.0,0.00020821,2]
[380104818,1755545446327,-480.0,0.00020821,2]
[380104819,1755545446336,-480.0,0.00020821,2]
[380104820,1755545446346,-480.0,0.00020821,2]
[380104821,1755545446355,-480.0,0.00020821,2]
[380104822,1755545446364,-480.0,0.00020821,2]
[380104823,1755545446373,-249.01,0.00020821,2]
[380104824,1755545446383,-480.0,0.00020821,2]
[380104825,1755545446392,-480.0,0.00020821,2]
[380104826,1755545446401,-480.0,0.00020821,2]
[380104827,1755545446411,-480.0,0.00020821,2]
[380104828,1755545446420,-537.7,0.00020821,2]
[380104829,1755545446430,-480.0,0.00020821,2]
[380104830,1755545446439,-480.0,0.00020821,2]
[380104831,1755545446448,-480.0,0.00020821,2]
[380104832,1755545446458,-480.0,0.00020821,2]
[380104833,1755545446468,-728.99,0.00020821,2]
[380104834,1755545446477,-480.0,0.00020821,2]
[380104835,1755545446487,-561.56,0.00020821,2]
[380104836,1755545446496,-480.0,0.00020821,2]
[380104837,1755545446505,-208.16,0.00020821,2]
[380104838,1755545446514,-500.0,0.00020822,2]
[380104839,1755545446523,-416.09,0.00020839,2]
[380104840,1755545446532,-420.0,0.00020884,2]
[380104841,1755545446541,-301.76573477,0.00020999,2]
[380104842,1755545446550,-190151.64364461,0.00021,30]
[380104843,1755545446559,-1942.28339133,0.00021,5]
[380104844,1755545446569,-375.82681177,0.00021,30]
[380104845,1755545446578,-1205.26409376,0.00021,2]
[380104846,1755545446588,-203.11555608,0.00021,2]
[380104847,1755545446597,-417.15472785,0.00021,30]
[380104848,1755545446606,-260.0,0.00021017,2]
[380104849,1755545446616,-347.71742374,0.0002105,2]
[380104850,1755545446625,-347.71742374,0.0002105,2]
[380104851,1755545446635,-480.0,0.00021095,2]
[380104852,1755545446644,-480.0,0.00021095,2]
[380104853,1755545446653,-697.28,0.00021095,2]
[380104854,1755545446662,-746.11,0.00021095,2]
[380104855,1755545446671,-873.41,0.00021095,2]
[380104856,1755545446680,-480.0,0.00021095,2]
[380104857,1755545446690,-480.0,0.00021095,2]
[380104858,1755545446700,-849.76,0.00021095,2]
[380104859,1755545446709,-480.0,0.00021095,2]
[380104860,1755545446718,-583.67,0.00021095,2]
[380104861,1755545446728,-480.0,0.00021095,2]
[380104862,1755545446737,-1188.19,0.00021095,2]
[380104863,1755545446746,-480.0,0.00021095,2]
[380104864,1755545446756,-3096.08,0.00021095,2]
[380104865,1755545446765,-480.0,0.00021095,2]
[380104866,1755545446774,-480.0,0.00021095,2]
[380104867,1755545446784,-480.0,0.00021095,2]
[380104868,1755545446793,-480.0,0.00021095,2]
[380104869,1755545446802,-480.0,0.00021095,2]
[380104870,1755545446811,-480.0,0.00021095,2]
[380104871,1755545446820,-480.0,0.00021095,2]
[380104872,1755545446830,-480.0,0.00021095,2]
[380104873,1755545446840,-480.0,0.00021095,2]
[380104874,1755545446849,-480.0,0.00021095,2]
[380104875,1755545446858,-480.0,0.00021095,2]
[380104876,1755545446868,-480.0,0.00021095,2]
[380104877,1755545446877,-480.0,0.00021095,2]
[380104878,1755545446889,-480.0,0.00021095,2]
[380104879,1755545446898,-480.0,0.00021095,2]
[380104880,1755545446908,-480.0,0.00021095,2]
[380104881,1755545446918,-480.0,0.00021095,2]
[380104882,1755545446928,-254.87,0.00021095,2]
[380104883,1755545446936,-480.0,0.00021095,2]
[380104884,1755545446946,-537.7,0.00021095,2]
[380104885,1755545446955,-480.0,0.00021095,2]
[380104886,1755545446965,-480.0,0.00021095,2]
[380104887,1755545446975,-480.0,0.00021095,2]
[380104888,1755545446984,-212.52910949,0.00021095,2]
[380104889,1755545446999,-728.99,0.00021095,2]
[380104890,1755545447008,-480.0,0.00021095,2]
[380104891,1755545447018,-561.56,0.00021095,2]
[380104892,1755545447027,-480.0,0.00021095,2]
[380104893,1755545447036,-500.0,0.00021096,2]
[380104894,1755545447045,-507.48997828,0.00021327,2]
[380104895,1755545447055,-480.0,0.00021369,2]
[380104896,1755545447064,-247.65310314,0.00021369,2]
[380104897,1755545447073,-697.28,0.00021369,2]
[380104898,1755545447082,-746.11,0.00021369,2]
[380104899,1755545447091,-873.41,0.00021369,2]
[380104900,1755545447101,-305.0,0.00021369,2]
[380104901,1755545447197,-849.76,0.00021369,2]
[380104902,1755545447206,-480.0,0.00021369,2]
[380104903,1755545447216,-583.67,0.00021369,2]
[380104904,1755545447225,-480.0,0.00021369,2]
[380104905,1755545447235,-1188.19,0.00021369,2]
[380104906,1755545447244,-480.0,0.00021369,2]
[380104907,1755545447254,-3096.08,0.00021369,2]
[380104908,1755545447263,-480.0,0.00021369,2]
[380104909,1755545447272,-480.0,0.00021369,2]
[380104910,1755545447282,-480.0,0.00021369,2]
[380104911,1755545447291,-460.0,0.00021369,2]
[380104912,1755545447300,-480.0,0.00021369,2]
[380104913,1755545447309,-480.0,0.00021369,2]
[380104914,1755545447318,-542.26419496,0.00021369,2]
[380104915,1755545447328,-480.0,0.00021369,2]
[380104916,1755545447337,-480.0,0.00021369,2]
[380104917,1755545447347,-223.68,0.00021369,2]
[380104918,1755545447356,-480.0,0.00021369,2]
[380104920,1755545447365,-480.0,0.00021369,2]
[380104921,1755545447374,-480.0,0.00021369,2]
[380104922,1755545447383,-480.0,0.00021369,2]
[380104923,1755545447393,-480.0,0.00021369,2]
[380104924,1755545447402,-480.0,0.00021369,2]
[380104925,1755545447411,-480.0,0.00021369,2]
[380104926,1755545447421,-594.00714024,0.00021369,2]
[380104927,1755545447431,-537.7,0.00021369,2]
[380104928,1755545447440,-480.0,0.00021369,2]
[380104929,1755545447450,-480.0,0.00021369,2]
[380104930,1755545447459,-728.99,0.00021369,2]
[380104931,1755545447468,-561.56,0.00021369,2]
[380104932,1755545447478,-480.0,0.00021369,2]
[380104933,1755545447488,-500.0,0.0002137,2]
[380104934,1755545447499,-500.0,0.00021438,2]
[380104935,1755545447508,-500.0,0.00021438,2]
[380104936,1755545447518,-500.0,0.00021438,2]
[380104937,1755545447528,-697.28,0.00021643,2]
[380104938,1755545447537,-746.11,0.00021643,2]
[380104939,1755545447547,-873.41,0.00021643,2]
[380104940,1755545447556,-849.76,0.00021643,2]
[380104941,1755545447565,-48.84015758,0.00021643,2]
[380104942,1755545447664,-534.82984242,0.00021643,2]
[380104943,1755545447673,-480.0,0.00021643,2]